[Event "December 5 Late 2023"]
[Site "https://www.chess.com"]
[Date "2023.12.05"]
[Round "5"]
[White "Rustemov, Alexander"]
[Black "Ozates, Tuna"]
[Result "1-0"]
[Board "38"]
[TimeControl "180+1"]
[WhiteFideId "4119002"]
[BlackFideId "6354521"]
[WhiteElo "2835"]
[BlackElo "2585"]
[WhiteTeam "RUS"]
[BlackTeam "TUR"]
[WhiteClock "0:00:36"]
[BlackClock "0:00:00"]

1. d4 {[%clk 0:02:56]}  Nf6 {[%clk 0:02:43]} 2. c4 {[%clk 0:02:56]}  e6 {[%clk 0:02:43]} 3. Nf3 {[%clk 0:02:57]}  d5 {[%clk 0:02:43]} 4. cxd5 {[%clk 0:02:57]}  exd5 {[%clk 0:02:43]} 5. Nc3 {[%clk 0:02:57]}  c6 {[%clk 0:02:36]} 6. Bg5 {[%clk 0:02:57]}  g6 {[%clk 0:02:35]} 7. e3 {[%clk 0:02:51]}  Bf5 {[%clk 0:02:32]} 8. Bd3 {[%clk 0:02:46]}  Bxd3 {[%clk 0:02:32]} 9. Qxd3 {[%clk 0:02:47]}  h6 {[%clk 0:02:30]} 10. Bf4 {[%clk 0:02:45]}  Nbd7 {[%clk 0:02:29]} 11. h3 {[%clk 0:02:44]}  Bg7 {[%clk 0:02:20]} 12. Bd6 {[%clk 0:02:40]}  Bf8 {[%clk 0:02:20]} 13. Bf4 {[%clk 0:02:34]}  Bg7 {[%clk 0:02:20]} 14. O-O {[%clk 0:02:34]}  O-O {[%clk 0:02:20]} 15. Rab1 {[%clk 0:02:30]}  a5 {[%clk 0:02:19]} 16. Qc2 {[%clk 0:02:27]}  Re8 {[%clk 0:02:19]} 17. a3 {[%clk 0:02:22]}  b5 {[%clk 0:02:07]} 18. Ne5 {[%clk 0:02:18]}  Nxe5 {[%clk 0:02:06]} 19. Bxe5 {[%clk 0:02:18]}  Nd7 {[%clk 0:02:06]} 20. Bxg7 {[%clk 0:02:16]}  Kxg7 {[%clk 0:02:07]} 21. a4 {[%clk 0:02:14]}  b4 {[%clk 0:02:05]} 22. Ne2 {[%clk 0:02:13]}  Rc8 {[%clk 0:02:06]} 23. Nf4 {[%clk 0:02:12]}  Qf6 {[%clk 0:01:50]} 24. Nd3 {[%clk 0:02:10]}  Qd6 {[%clk 0:01:42]} 25. Rbc1 {[%clk 0:02:09]}  f5 {[%clk 0:01:36]} 26. Qd2 {[%clk 0:02:05]}  Nf6 {[%clk 0:01:33]} 27. Rc2 {[%clk 0:02:00]}  g5 {[%clk 0:01:30]} 28. Rfc1 {[%clk 0:01:57]}  Ne4 {[%clk 0:01:29]} 29. Qd1 {[%clk 0:01:57]}  Kh7 {[%clk 0:01:21]} 30. Qh5 {[%clk 0:01:56]}  Re7 {[%clk 0:01:16]} 31. Qf3 {[%clk 0:01:48]}  Qe6 {[%clk 0:00:58]} 32. Nc5 {[%clk 0:01:39]}  Qg6 {[%clk 0:00:54]} 33. Nd3 {[%clk 0:01:32]}  g4 {[%clk 0:00:53]} 34. Qf4 {[%clk 0:01:24]}  gxh3 {[%clk 0:00:53]} 35. g3 {[%clk 0:01:23]}  Ng5 {[%clk 0:00:44]} 36. Ne5 {[%clk 0:01:17]}  Rxe5 {[%clk 0:00:37]} 37. dxe5 {[%clk 0:01:14]}  h2+ {[%clk 0:00:24]} 38. Kh1 {[%clk 0:01:08]}  Ne4 {[%clk 0:00:20]} 39. Kxh2 {[%clk 0:01:03]}  c5 {[%clk 0:00:19]} 40. Kg2 {[%clk 0:00:58]}  c4 {[%clk 0:00:19]} 41. Rh1 {[%clk 0:00:57]}  b3 {[%clk 0:00:15]} 42. Rcc1 {[%clk 0:00:56]}  Re8 {[%clk 0:00:10]} 43. Rcd1 {[%clk 0:00:54]}  Rd8 {[%clk 0:00:06]} 44. Rd4 {[%clk 0:00:46]}  Ng5 {[%clk 0:00:06]} 45. Qh4 {[%clk 0:00:40]}  Ne6 {[%clk 0:00:06]} 46. Qe7+ {[%clk 0:00:38]}  Kg8 {[%clk 0:00:03]} 47. Rdh4 {[%clk 0:00:38]}  Qg5 {[%clk 0:00:00]} 48. Qxe6+ {[%clk 0:00:36]} 1-0

[Event "December 5 Late 2023"]
[Site "https://www.chess.com"]
[Date "2023.12.05"]
[Round "5"]
[White "Suder, Jakub"]
[Black "KhalilMousavi98"]
[Result "0-1"]
[Board "41"]
[TimeControl "180+1"]
[WhiteFideId "1195310"]
[WhiteElo "2547"]
[BlackElo "2808"]
[WhiteTeam "POL"]
[WhiteClock "0:00:44"]
[BlackClock "0:01:14"]

1. d4 {[%clk 0:03:00]}  Nf6 {[%clk 0:02:59]} 2. c4 {[%clk 0:03:00]}  e6 {[%clk 0:02:59]} 3. Nc3 {[%clk 0:03:00]}  Bb4 {[%clk 0:03:00]} 4. f3 {[%clk 0:03:00]}  c5 {[%clk 0:02:55]} 5. d5 {[%clk 0:03:00]}  b5 {[%clk 0:02:50]} 6. e4 {[%clk 0:02:59]}  bxc4 {[%clk 0:02:30]} 7. Bxc4 {[%clk 0:02:59]}  exd5 {[%clk 0:02:25]} 8. Bxd5 {[%clk 0:02:58]}  Nxd5 {[%clk 0:02:25]} 9. Qxd5 {[%clk 0:02:59]}  Nc6 {[%clk 0:02:25]} 10. Ne2 {[%clk 0:02:59]}  Ba6 {[%clk 0:02:24]} 11. Kf2 {[%clk 0:02:58]}  O-O {[%clk 0:02:19]} 12. Be3 {[%clk 0:02:58]}  Qe7 {[%clk 0:02:17]} 13. Rhd1 {[%clk 0:02:55]}  Ne5 {[%clk 0:02:14]} 14. Kg1 {[%clk 0:02:46]}  Nc4 {[%clk 0:02:06]} 15. Bg5 {[%clk 0:02:40]}  Qe6 {[%clk 0:02:07]} 16. b3 {[%clk 0:02:23]}  Nb2 {[%clk 0:02:01]} 17. Rdb1 {[%clk 0:02:08]}  Nd3 {[%clk 0:02:00]} 18. a3 {[%clk 0:02:01]}  Ba5 {[%clk 0:01:56]} 19. b4 {[%clk 0:01:53]}  Bb6 {[%clk 0:01:53]} 20. b5 {[%clk 0:01:50]}  c4+ {[%clk 0:01:31]} 21. Kf1 {[%clk 0:01:50]}  Bb7 {[%clk 0:01:29]} 22. Qxb7 {[%clk 0:01:05]}  Qe5 {[%clk 0:01:27]} 23. Nd5 {[%clk 0:00:55]}  Qxg5 {[%clk 0:01:16]} 24. Nxb6 {[%clk 0:00:44]}  Qe3 {[%clk 0:01:14]} 0-1

[Event "December 5 Late 2023"]
[Site "https://www.chess.com"]
[Date "2023.12.05"]
[Round "5"]
[White "Prithu Gupta"]
[Black "Hamidi, Amir Mohammad"]
[Result "0-1"]
[Board "43"]
[TimeControl "180+1"]
[WhiteFideId "46618546"]
[BlackFideId "12563285"]
[WhiteElo "2539"]
[BlackElo "2797"]
[WhiteTeam "IND"]
[BlackTeam "IRI"]
[WhiteClock "0:00:00"]
[BlackClock "0:01:42"]

1. d4 {[%clk 0:03:00]}  Nf6 {[%clk 0:02:54]} 2. c4 {[%clk 0:03:00]}  e6 {[%clk 0:02:54]} 3. Nf3 {[%clk 0:03:00]}  Bb4+ {[%clk 0:02:51]} 4. Bd2 {[%clk 0:03:00]}  Qe7 {[%clk 0:02:51]} 5. e3 {[%clk 0:02:59]}  b6 {[%clk 0:02:51]} 6. Bd3 {[%clk 0:02:59]}  Bb7 {[%clk 0:02:51]} 7. O-O {[%clk 0:03:00]}  Bxd2 {[%clk 0:02:52]} 8. Nbxd2 {[%clk 0:02:57]}  O-O {[%clk 0:02:52]} 9. e4 {[%clk 0:02:57]}  d6 {[%clk 0:02:53]} 10. Qe2 {[%clk 0:02:56]}  e5 {[%clk 0:02:53]} 11. b4 {[%clk 0:02:54]}  Nc6 {[%clk 0:02:52]} 12. dxe5 {[%clk 0:02:51]}  dxe5 {[%clk 0:02:52]} 13. a3 {[%clk 0:02:49]}  a5 {[%clk 0:02:48]} 14. b5 {[%clk 0:02:47]}  Nb8 {[%clk 0:02:48]} 15. Nb1 {[%clk 0:01:57]}  Nbd7 {[%clk 0:02:48]} 16. Nc3 {[%clk 0:01:57]}  Nc5 {[%clk 0:02:48]} 17. Bc2 {[%clk 0:01:57]}  Rad8 {[%clk 0:02:46]} 18. Nd5 {[%clk 0:01:56]}  Bxd5 {[%clk 0:02:47]} 19. exd5 {[%clk 0:01:51]}  Rfe8 {[%clk 0:02:47]} 20. Rfe1 {[%clk 0:01:49]}  Nfd7 {[%clk 0:02:47]} 21. Qe3 {[%clk 0:01:47]}  g6 {[%clk 0:02:46]} 22. h4 {[%clk 0:01:38]}  Kg7 {[%clk 0:02:46]} 23. h5 {[%clk 0:01:38]}  Qf6 {[%clk 0:02:40]} 24. h6+ {[%clk 0:01:36]}  Kg8 {[%clk 0:02:40]} 25. Ng5 {[%clk 0:01:35]}  Qe7 {[%clk 0:02:38]} 26. Rad1 {[%clk 0:01:29]}  Nb7 {[%clk 0:02:35]} 27. Qg3 {[%clk 0:01:21]}  Nd6 {[%clk 0:02:30]} 28. f4 {[%clk 0:01:04]}  exf4 {[%clk 0:02:27]} 29. Qxf4 {[%clk 0:00:57]}  Qf8 {[%clk 0:02:27]} 30. Nf3 {[%clk 0:00:28]}  Rxe1+ {[%clk 0:02:18]} 31. Rxe1 {[%clk 0:00:29]}  Re8 {[%clk 0:02:18]} 32. Rf1 {[%clk 0:00:25]}  Qe7 {[%clk 0:02:15]} 33. Kh1 {[%clk 0:00:19]}  f6 {[%clk 0:02:08]} 34. Nd4 {[%clk 0:00:13]}  Nc5 {[%clk 0:02:08]} 35. Qxf6 {[%clk 0:00:10]}  Qxf6 {[%clk 0:02:08]} 36. Rxf6 {[%clk 0:00:11]}  Nxc4 {[%clk 0:02:04]} 37. Rc6 {[%clk 0:00:10]}  Re7 {[%clk 0:02:00]} 38. Ne6 {[%clk 0:00:04]}  Nxe6 {[%clk 0:01:56]} 39. dxe6 {[%clk 0:00:05]}  Nd6 {[%clk 0:01:57]} 40. Bd3 {[%clk 0:00:05]}  Kf8 {[%clk 0:01:55]} 41. Kh2 {[%clk 0:00:05]}  Ke8 {[%clk 0:01:53]} 42. Kg3 {[%clk 0:00:04]}  Rxe6 {[%clk 0:01:47]} 43. Rxc7 {[%clk 0:00:03]}  Re3+ {[%clk 0:01:48]} 44. Kf4 {[%clk 0:00:03]}  Rxd3 {[%clk 0:01:48]} 45. Rxh7 {[%clk 0:00:03]}  Rd5 {[%clk 0:01:49]} 46. Rg7 {[%clk 0:00:03]}  Rh5 {[%clk 0:01:48]} 47. Rxg6 {[%clk 0:00:02]}  Nf7 {[%clk 0:01:48]} 48. Rxb6 {[%clk 0:00:02]}  Nxh6 {[%clk 0:01:47]} 49. g4 {[%clk 0:00:02]}  Rh4 {[%clk 0:01:44]} 50. Kg5 {[%clk 0:00:02]}  Rh1 {[%clk 0:01:44]} 51. Rxh6 {[%clk 0:00:00]}  Ra1 {[%clk 0:01:42]} 0-1

[Event "December 5 Late 2023"]
[Site "https://www.chess.com"]
[Date "2023.12.05"]
[Round "5"]
[White "Sattarov, Bobir"]
[Black "Tikhonov, Viacheslav"]
[Result "1-0"]
[Board "45"]
[TimeControl "180+1"]
[WhiteFideId "14203081"]
[BlackFideId "44196407"]
[WhiteElo "2731"]
[BlackElo "2534"]
[WhiteTeam "UZB"]
[BlackTeam "RUS"]
[WhiteClock "0:00:43"]
[BlackClock "0:00:00"]

1. e4 {[%clk 0:03:00]}  c5 {[%clk 0:03:00]} 2. Nf3 {[%clk 0:03:00]}  g6 {[%clk 0:03:00]} 3. d4 {[%clk 0:03:00]}  cxd4 {[%clk 0:03:01]} 4. Nxd4 {[%clk 0:03:00]}  Nc6 {[%clk 0:03:01]} 5. Nc3 {[%clk 0:03:01]}  Bg7 {[%clk 0:03:01]} 6. Be3 {[%clk 0:03:01]}  Nf6 {[%clk 0:03:01]} 7. Nxc6 {[%clk 0:03:01]}  bxc6 {[%clk 0:03:02]} 8. e5 {[%clk 0:03:01]}  Ng8 {[%clk 0:03:00]} 9. Bd4 {[%clk 0:03:01]}  f6 {[%clk 0:02:59]} 10. exf6 {[%clk 0:02:58]}  Nxf6 {[%clk 0:02:58]} 11. Be2 {[%clk 0:02:48]}  O-O {[%clk 0:02:58]} 12. O-O {[%clk 0:02:48]}  Re8 {[%clk 0:02:55]} 13. f4 {[%clk 0:02:44]}  d5 {[%clk 0:02:48]} 14. Kh1 {[%clk 0:02:39]}  Bf5 {[%clk 0:02:48]} 15. Na4 {[%clk 0:02:37]}  Ne4 {[%clk 0:02:41]} 16. Bxg7 {[%clk 0:02:36]}  Kxg7 {[%clk 0:02:42]} 17. Qd4+ {[%clk 0:02:36]}  e5 {[%clk 0:02:26]} 18. fxe5 {[%clk 0:02:32]}  Qe7 {[%clk 0:02:26]} 19. Bd3 {[%clk 0:02:24]}  Qxe5 {[%clk 0:02:24]} 20. Qxe5+ {[%clk 0:02:23]}  Rxe5 {[%clk 0:02:25]} 21. Kg1 {[%clk 0:02:20]}  Rae8 {[%clk 0:02:09]} 22. Rfe1 {[%clk 0:02:16]}  Nd6 {[%clk 0:01:42]} 23. Rxe5 {[%clk 0:02:14]}  Rxe5 {[%clk 0:01:42]} 24. Bxf5 {[%clk 0:02:07]}  Nxf5 {[%clk 0:01:43]} 25. Kf2 {[%clk 0:02:01]}  Kf6 {[%clk 0:01:34]} 26. c3 {[%clk 0:01:55]}  h5 {[%clk 0:01:23]} 27. Nc5 {[%clk 0:01:54]}  Ke7 {[%clk 0:01:17]} 28. Nd3 {[%clk 0:01:51]}  Re4 {[%clk 0:01:13]} 29. Nc5 {[%clk 0:01:44]}  Re5 {[%clk 0:01:13]} 30. Nd3 {[%clk 0:01:16]}  Re4 {[%clk 0:01:13]} 31. Re1 {[%clk 0:01:16]}  Rxe1 {[%clk 0:01:03]} 32. Kxe1 {[%clk 0:01:13]}  g5 {[%clk 0:00:50]} 33. Ne5 {[%clk 0:01:13]}  c5 {[%clk 0:00:21]} 34. Nc6+ {[%clk 0:01:11]}  Kd7 {[%clk 0:00:20]} 35. Nxa7 {[%clk 0:01:11]}  Ne3 {[%clk 0:00:21]} 36. g3 {[%clk 0:01:05]}  h4 {[%clk 0:00:16]} 37. gxh4 {[%clk 0:01:04]}  gxh4 {[%clk 0:00:17]} 38. h3 {[%clk 0:01:02]}  Nc4 {[%clk 0:00:08]} 39. b3 {[%clk 0:01:01]}  Nd6 {[%clk 0:00:08]} 40. a4 {[%clk 0:00:58]}  c4 {[%clk 0:00:02]} 41. b4 {[%clk 0:00:55]}  Kc7 {[%clk 0:00:03]} 42. Nb5+ {[%clk 0:00:50]}  Nxb5 {[%clk 0:00:02]} 43. axb5 {[%clk 0:00:51]}  Kb6 {[%clk 0:00:03]} 44. Kd2 {[%clk 0:00:47]}  Kxb5 {[%clk 0:00:01]} 45. Ke3 {[%clk 0:00:48]}  Kc6 {[%clk 0:00:01]} 46. Kd4 {[%clk 0:00:48]}  Kd6 {[%clk 0:00:02]} 47. b5 {[%clk 0:00:48]}  Ke6 {[%clk 0:00:01]} 48. Kc5 {[%clk 0:00:47]}  Ke5 {[%clk 0:00:01]} 49. b6 {[%clk 0:00:46]}  Kf4 {[%clk 0:00:01]} 50. b7 {[%clk 0:00:45]}  Kg3 {[%clk 0:00:02]} 51. b8=Q+ {[%clk 0:00:45]}  Kxh3 {[%clk 0:00:02]} 52. Qf4 {[%clk 0:00:44]}  d4 {[%clk 0:00:00]} 53. Kxd4 {[%clk 0:00:43]} 1-0

[Event "December 5 Late 2023"]
[Site "https://www.chess.com"]
[Date "2023.12.05"]
[Round "5"]
[White "Hakobyan, Aram"]
[Black "Dmitrenko, Viktor"]
[Result "1-0"]
[Board "49"]
[TimeControl "180+1"]
[WhiteFideId "13306677"]
[BlackFideId "14110270"]
[WhiteElo "3002"]
[BlackElo "2430"]
[WhiteTeam "ARM"]
[BlackTeam "UKR"]
[WhiteClock "0:00:01"]
[BlackClock "0:00:00"]

1. e4 {[%clk 0:03:00]}  e6 {[%clk 0:02:59]} 2. Nf3 {[%clk 0:03:00]}  d5 {[%clk 0:03:00]} 3. exd5 {[%clk 0:03:01]}  exd5 {[%clk 0:03:00]} 4. d4 {[%clk 0:03:01]}  Bg4 {[%clk 0:02:58]} 5. h3 {[%clk 0:03:01]}  Bh5 {[%clk 0:02:57]} 6. Be2 {[%clk 0:03:01]}  Bd6 {[%clk 0:02:56]} 7. O-O {[%clk 0:03:01]}  Nf6 {[%clk 0:02:52]} 8. Ne5 {[%clk 0:02:56]}  Bxe2 {[%clk 0:02:50]} 9. Qxe2 {[%clk 0:02:57]}  O-O {[%clk 0:02:49]} 10. Nc3 {[%clk 0:02:57]}  Re8 {[%clk 0:02:38]} 11. Bg5 {[%clk 0:02:58]}  c6 {[%clk 0:02:37]} 12. Rae1 {[%clk 0:02:53]}  Nbd7 {[%clk 0:02:33]} 13. f4 {[%clk 0:02:36]}  Qb6 {[%clk 0:02:26]} 14. Qd3 {[%clk 0:02:02]}  Nxe5 {[%clk 0:02:00]} 15. fxe5 {[%clk 0:02:02]}  Bxe5 {[%clk 0:01:58]} 16. Rxe5 {[%clk 0:02:02]}  Rxe5 {[%clk 0:01:56]} 17. Na4 {[%clk 0:02:02]}  Qa5 {[%clk 0:01:47]} 18. dxe5 {[%clk 0:01:14]}  Ne4 {[%clk 0:01:46]} 19. Qb3 {[%clk 0:00:18]}  b5 {[%clk 0:01:39]} 20. Nc5 {[%clk 0:00:11]}  Nxg5 {[%clk 0:01:31]} 21. Qg3 {[%clk 0:00:08]}  Qb6 {[%clk 0:00:58]} 22. Qf2 {[%clk 0:00:07]}  Rf8 {[%clk 0:00:37]} 23. b4 {[%clk 0:00:08]}  Ne6 {[%clk 0:00:29]} 24. Qe3 {[%clk 0:00:06]}  Nxc5 {[%clk 0:00:28]} 25. bxc5 {[%clk 0:00:07]}  Qc7 {[%clk 0:00:26]} 26. Rf5 {[%clk 0:00:07]}  Qd7 {[%clk 0:00:24]} 27. Rg5 {[%clk 0:00:07]}  Qe7 {[%clk 0:00:21]} 28. Qg3 {[%clk 0:00:06]}  Qxc5+ {[%clk 0:00:17]} 29. Kh1 {[%clk 0:00:06]}  g6 {[%clk 0:00:18]} 30. h4 {[%clk 0:00:06]}  Qxc2 {[%clk 0:00:17]} 31. h5 {[%clk 0:00:07]}  Kg7 {[%clk 0:00:16]} 32. Qh4 {[%clk 0:00:04]}  Qe2 {[%clk 0:00:09]} 33. Rg3 {[%clk 0:00:03]}  Qe1+ {[%clk 0:00:08]} 34. Kh2 {[%clk 0:00:03]}  Qxe5 {[%clk 0:00:08]} 35. h6+ {[%clk 0:00:04]}  Kg8 {[%clk 0:00:07]} 36. Kh1 {[%clk 0:00:05]}  Re8 {[%clk 0:00:07]} 37. Qg4 {[%clk 0:00:03]}  Qe1+ {[%clk 0:00:04]} 38. Kh2 {[%clk 0:00:03]}  Qe6 {[%clk 0:00:04]} 39. Qf4 {[%clk 0:00:03]}  Qe5 {[%clk 0:00:04]} 40. Qh4 {[%clk 0:00:04]}  f6 {[%clk 0:00:02]} 41. Kh1 {[%clk 0:00:03]}  Kf7 {[%clk 0:00:02]} 42. Qh3 {[%clk 0:00:02]}  Qe1+ {[%clk 0:00:01]} 43. Kh2 {[%clk 0:00:02]}  Qe6 {[%clk 0:00:02]} 44. Qh4 {[%clk 0:00:02]}  Qe5 {[%clk 0:00:00]} 45. Qg4 {[%clk 0:00:01]} 1-0

[Event "December 5 Late 2023"]
[Site "https://www.chess.com"]
[Date "2023.12.05"]
[Round "5"]
[White "Mikaelyan, Arman"]
[Black "Mis, Mieszko"]
[Result "1-0"]
[Board "50"]
[TimeControl "180+1"]
[WhiteFideId "13304852"]
[BlackFideId "1196448"]
[WhiteElo "2841"]
[BlackElo "2669"]
[WhiteTeam "ARM"]
[BlackTeam "POL"]
[WhiteClock "0:01:21"]
[BlackClock "0:00:00"]

1. e4 {[%clk 0:03:00]}  c5 {[%clk 0:02:58]} 2. Nf3 {[%clk 0:03:01]}  e6 {[%clk 0:02:58]} 3. Bc4 {[%clk 0:03:01]}  Nc6 {[%clk 0:02:55]} 4. O-O {[%clk 0:03:01]}  a6 {[%clk 0:02:55]} 5. Re1 {[%clk 0:03:01]}  d6 {[%clk 0:02:52]} 6. d4 {[%clk 0:03:00]}  cxd4 {[%clk 0:02:52]} 7. Nxd4 {[%clk 0:03:00]}  Nf6 {[%clk 0:02:50]} 8. Nc3 {[%clk 0:03:01]}  Be7 {[%clk 0:02:49]} 9. Bg5 {[%clk 0:03:00]}  O-O {[%clk 0:02:45]} 10. a4 {[%clk 0:03:00]}  Bd7 {[%clk 0:02:42]} 11. Nb3 {[%clk 0:02:57]}  Rc8 {[%clk 0:02:41]} 12. Bf1 {[%clk 0:02:57]}  Ne5 {[%clk 0:02:41]} 13. a5 {[%clk 0:02:54]}  Qc7 {[%clk 0:02:33]} 14. Qd2 {[%clk 0:02:51]}  Rfd8 {[%clk 0:02:32]} 15. Rad1 {[%clk 0:02:42]}  Nc4 {[%clk 0:02:28]} 16. Bxc4 {[%clk 0:02:41]}  Qxc4 {[%clk 0:02:27]} 17. Be3 {[%clk 0:02:29]}  Bc6 {[%clk 0:02:03]} 18. Bb6 {[%clk 0:02:29]}  Re8 {[%clk 0:02:00]} 19. Nd4 {[%clk 0:02:27]}  Nd7 {[%clk 0:01:58]} 20. b3 {[%clk 0:02:16]}  Qb4 {[%clk 0:01:55]} 21. Nd5 {[%clk 0:02:12]}  Qxd2 {[%clk 0:01:52]} 22. Nxe7+ {[%clk 0:02:13]}  Rxe7 {[%clk 0:01:51]} 23. Rxd2 {[%clk 0:02:14]}  Nxb6 {[%clk 0:01:38]} 24. axb6 {[%clk 0:02:14]}  Rd7 {[%clk 0:01:37]} 25. c4 {[%clk 0:02:12]}  Rdd8 {[%clk 0:01:31]} 26. f3 {[%clk 0:02:11]}  Kf8 {[%clk 0:01:31]} 27. b4 {[%clk 0:02:02]}  Ke7 {[%clk 0:01:28]} 28. Nb3 {[%clk 0:02:02]}  Kf6 {[%clk 0:01:07]} 29. Na5 {[%clk 0:02:02]}  g5 {[%clk 0:01:00]} 30. Red1 {[%clk 0:02:02]}  Ke7 {[%clk 0:01:00]} 31. e5 {[%clk 0:01:53]}  d5 {[%clk 0:00:43]} 32. Kf2 {[%clk 0:01:52]}  Ba4 {[%clk 0:00:38]} 33. Ra1 {[%clk 0:01:51]}  Bc6 {[%clk 0:00:36]} 34. b5 {[%clk 0:01:37]}  axb5 {[%clk 0:00:34]} 35. cxb5 {[%clk 0:01:38]}  Bxb5 {[%clk 0:00:26]} 36. Nxb7 {[%clk 0:01:38]}  Rd7 {[%clk 0:00:14]} 37. Nd6 {[%clk 0:01:36]}  Rxd6 {[%clk 0:00:13]} 38. exd6+ {[%clk 0:01:37]}  Kxd6 {[%clk 0:00:13]} 39. Rb2 {[%clk 0:01:35]}  Bc6 {[%clk 0:00:10]} 40. Ra7 {[%clk 0:01:35]}  Rb8 {[%clk 0:00:10]} 41. Rxf7 {[%clk 0:01:35]}  h5 {[%clk 0:00:10]} 42. Ke3 {[%clk 0:01:34]}  g4 {[%clk 0:00:06]} 43. f4 {[%clk 0:01:32]}  Ra8 {[%clk 0:00:04]} 44. b7 {[%clk 0:01:31]}  Rb8 {[%clk 0:00:02]} 45. Kd4 {[%clk 0:01:32]}  Bd7 {[%clk 0:00:02]} 46. g3 {[%clk 0:01:22]}  Bc6 {[%clk 0:00:02]} 47. Rb6 {[%clk 0:01:22]}  h4 {[%clk 0:00:00]} 48. gxh4 {[%clk 0:01:21]} 1-0

[Event "December 5 Late 2023"]
[Site "https://www.chess.com"]
[Date "2023.12.05"]
[Round "5"]
[White "Galaktionov, Artem"]
[Black "Goltsev, Dmitry"]
[Result "1-0"]
[Board "51"]
[TimeControl "180+1"]
[WhiteFideId "24175471"]
[BlackFideId "24176710"]
[WhiteElo "2840"]
[BlackElo "2651"]
[WhiteTeam "RUS"]
[BlackTeam "RUS"]
[WhiteClock "0:00:45"]
[BlackClock "0:00:03"]

1. d4 {[%clk 0:03:00]}  e6 {[%clk 0:02:59]} 2. c4 {[%clk 0:02:55]}  b6 {[%clk 0:02:58]} 3. Nf3 {[%clk 0:02:52]}  Bb7 {[%clk 0:02:58]} 4. g3 {[%clk 0:02:51]}  Nf6 {[%clk 0:02:59]} 5. Bg2 {[%clk 0:02:51]}  Bb4+ {[%clk 0:03:00]} 6. Bd2 {[%clk 0:02:52]}  Be7 {[%clk 0:03:00]} 7. Nc3 {[%clk 0:02:51]}  O-O {[%clk 0:03:00]} 8. Qc2 {[%clk 0:02:52]}  d5 {[%clk 0:03:00]} 9. cxd5 {[%clk 0:02:52]}  exd5 {[%clk 0:03:00]} 10. O-O {[%clk 0:02:53]}  Nbd7 {[%clk 0:02:59]} 11. Bf4 {[%clk 0:02:53]}  c5 {[%clk 0:02:59]} 12. Rfd1 {[%clk 0:02:53]}  a6 {[%clk 0:02:58]} 13. dxc5 {[%clk 0:02:53]}  bxc5 {[%clk 0:02:57]} 14. Ne5 {[%clk 0:02:49]}  Rc8 {[%clk 0:02:52]} 15. Nxd5 {[%clk 0:02:47]}  Bxd5 {[%clk 0:02:42]} 16. Bxd5 {[%clk 0:02:46]}  Nxe5 {[%clk 0:02:43]} 17. Bxe5 {[%clk 0:02:16]}  Nxd5 {[%clk 0:02:42]} 18. Qe4 {[%clk 0:02:16]}  Re8 {[%clk 0:01:55]} 19. Rxd5 {[%clk 0:02:14]}  Qb6 {[%clk 0:01:54]} 20. Qf3 {[%clk 0:02:06]}  c4 {[%clk 0:01:45]} 21. Rad1 {[%clk 0:02:02]}  Bc5 {[%clk 0:01:30]} 22. Kg2 {[%clk 0:01:51]}  Qe6 {[%clk 0:01:20]} 23. e3 {[%clk 0:01:48]}  Be7 {[%clk 0:01:11]} 24. Bc3 {[%clk 0:01:46]}  h6 {[%clk 0:01:08]} 25. Re5 {[%clk 0:01:40]}  Qg6 {[%clk 0:01:08]} 26. Rd7 {[%clk 0:01:38]}  Bf8 {[%clk 0:01:04]} 27. Rxe8 {[%clk 0:01:30]}  Rxe8 {[%clk 0:01:05]} 28. Rc7 {[%clk 0:01:30]}  h5 {[%clk 0:00:51]} 29. Rxc4 {[%clk 0:01:29]}  f6 {[%clk 0:00:36]} 30. h4 {[%clk 0:01:26]}  Kh7 {[%clk 0:00:31]} 31. Rc6 {[%clk 0:01:22]}  Re4 {[%clk 0:00:22]} 32. Kh2 {[%clk 0:01:00]}  a5 {[%clk 0:00:20]} 33. Ra6 {[%clk 0:00:49]}  Bb4 {[%clk 0:00:16]} 34. Bxb4 {[%clk 0:00:47]}  axb4 {[%clk 0:00:13]} 35. Ra5 {[%clk 0:00:47]}  Rg4 {[%clk 0:00:13]} 36. Qf5 {[%clk 0:00:45]}  Qxf5 {[%clk 0:00:11]} 37. Rxf5 {[%clk 0:00:46]}  Kg6 {[%clk 0:00:12]} 38. Rb5 {[%clk 0:00:46]}  Rc4 {[%clk 0:00:12]} 39. Kg2 {[%clk 0:00:46]}  Kh6 {[%clk 0:00:11]} 40. Kf3 {[%clk 0:00:46]}  g5 {[%clk 0:00:11]} 41. hxg5+ {[%clk 0:00:45]}  fxg5 {[%clk 0:00:12]} 42. e4 {[%clk 0:00:45]}  Kg6 {[%clk 0:00:10]} 43. Rb6+ {[%clk 0:00:45]}  Kg7 {[%clk 0:00:10]} 44. e5 {[%clk 0:00:45]}  h4 {[%clk 0:00:08]} 45. gxh4 {[%clk 0:00:46]}  gxh4 {[%clk 0:00:08]} 46. Kg2 {[%clk 0:00:46]}  Re4 {[%clk 0:00:08]} 47. Kh3 {[%clk 0:00:45]}  Kf7 {[%clk 0:00:08]} 48. f3 {[%clk 0:00:45]}  Rf4 {[%clk 0:00:05]} 49. Rf6+ {[%clk 0:00:45]}  Rxf6 {[%clk 0:00:04]} 50. exf6 {[%clk 0:00:46]}  b3 {[%clk 0:00:03]} 51. axb3 {[%clk 0:00:45]} 1-0

[Event "December 5 Late 2023"]
[Site "https://www.chess.com"]
[Date "2023.12.05"]
[Round "5"]
[White "Brodsky, David"]
[Black "Janaszak, Dawid"]
[Result "0-1"]
[Board "53"]
[TimeControl "180+1"]
[WhiteFideId "2073250"]
[BlackFideId "1119206"]
[WhiteElo "2791"]
[BlackElo "2581"]
[WhiteTeam "USA"]
[BlackTeam "POL"]
[WhiteClock "0:00:04"]
[BlackClock "0:01:19"]

1. d4 {[%clk 0:03:00]}  d5 {[%clk 0:02:59]} 2. c4 {[%clk 0:03:00]}  e6 {[%clk 0:02:59]} 3. Nc3 {[%clk 0:02:58]}  c5 {[%clk 0:03:00]} 4. cxd5 {[%clk 0:02:58]}  cxd4 {[%clk 0:02:59]} 5. Qa4+ {[%clk 0:02:57]}  Bd7 {[%clk 0:02:59]} 6. Qxd4 {[%clk 0:02:57]}  exd5 {[%clk 0:02:58]} 7. Qxd5 {[%clk 0:02:56]}  Nc6 {[%clk 0:02:57]} 8. Nf3 {[%clk 0:02:55]}  Nf6 {[%clk 0:02:55]} 9. Qd1 {[%clk 0:02:54]}  Bc5 {[%clk 0:02:52]} 10. e3 {[%clk 0:02:51]}  Qe7 {[%clk 0:02:51]} 11. Be2 {[%clk 0:02:46]}  O-O-O {[%clk 0:02:51]} 12. O-O {[%clk 0:02:45]}  Kb8 {[%clk 0:02:46]} 13. a3 {[%clk 0:02:41]}  h5 {[%clk 0:02:44]} 14. Qc2 {[%clk 0:02:35]}  g5 {[%clk 0:02:33]} 15. b4 {[%clk 0:02:25]}  Bd6 {[%clk 0:02:32]} 16. Bb2 {[%clk 0:02:21]}  g4 {[%clk 0:02:31]} 17. Nd4 {[%clk 0:02:17]}  Qe5 {[%clk 0:02:26]} 18. g3 {[%clk 0:02:13]}  h4 {[%clk 0:02:26]} 19. Ncb5 {[%clk 0:01:01]}  hxg3 {[%clk 0:02:13]} 20. fxg3 {[%clk 0:00:12]}  Qxe3+ {[%clk 0:02:02]} 21. Rf2 {[%clk 0:00:12]}  Rxh2 {[%clk 0:01:54]} 22. Bf1 {[%clk 0:00:08]}  Rdh8 {[%clk 0:01:42]} 23. Bg2 {[%clk 0:00:07]}  Bxg3 {[%clk 0:01:29]} 24. Nxc6+ {[%clk 0:00:05]}  Bxc6 {[%clk 0:01:26]} 25. Kf1 {[%clk 0:00:04]}  Rh1+ {[%clk 0:01:19]} 0-1